bitfinex/quotes_ETHUSD_20251024
["timestamp","ask_amount","ask_price","bid_price","bid_amount"]
[1761300748676,0.0002,3958.0,3957.9,6.22285663]
[1761300749013,0.0002,3958.0,3957.9,9.39985663]
[1761300764379,0.0002,3958.0,3957.9,9.71816745]
[1761300765150,0.0002,3958.0,3957.9,9.81922871]
[1761300766602,0.0002,3958.0,3957.9,11.71222871]
[1761300768289,0.0004,3958.4,3958.3,3.26741706]
[1761300768495,0.0004,3958.4,3958.3,9.0586709]
[1761300768693,0.0004,3958.4,3958.3,9.1850709]
[1761300772755,0.0004,3958.4,3958.3,9.4376709]
[1761300776366,0.0004,3958.4,3958.3,9.62958172]
[1761300776710,0.0004,3958.4,3958.3,9.73063201]
[1761300779901,0.0004,3958.4,3958.3,10.86272119]
[1761300780106,0.0004,3958.4,3958.3,11.31082119]
[1761300781585,0.0004,3958.4,3958.3,5.79372119]
[1761300781789,0.0004,3958.4,3958.3,10.86272119]
[1761300782095,0.0004,3958.4,3958.3,10.62852119]
[1761300782889,0.0004,3958.4,3958.3,11.07662119]
[1761300784710,0.0004,3958.4,3958.3,10.62852119]
[1761300786324,0.0004,3958.4,3958.3,10.6538709]
[1761300786523,0.0004,3958.4,3958.3,5.5848709]
[1761300786732,0.0004,3958.4,3958.3,10.6538709]
[1761300787593,0.0004,3958.4,3958.3,4.96741706]
[1761300787891,0.0994,3958.4,3958.3,8.14341706]
[1761300788522,0.0994,3958.4,3958.3,7.63653706]
[1761300788837,0.3988,3958.4,3958.2,2.52638649]
[1761300789035,0.3988,3958.4,3958.3,3.176]
[1761300789236,0.0004,3958.4,3958.2,0.1264]
[1761300789532,0.75847252,3958.4,3958.3,3.68288]
[1761300790345,0.85747252,3958.4,3958.3,3.68288]
[1761300791214,0.85747252,3958.4,3958.3,0.50688]
[1761300791447,0.85747252,3958.4,3958.3,6.20921706]
[1761300791769,0.85747252,3958.4,3958.3,3.03521706]
[1761300791937,0.85747252,3958.4,3958.3,3.68488]
[1761300792424,0.85667252,3958.4,3958.3,3.68488]
[1761300793338,0.85667252,3958.4,3958.3,0.002]
[1761300793532,0.98307252,3958.4,3958.3,3.178]
[1761300793718,1.33399847,3958.4,3958.3,3.178]
[1761300794327,1.33399847,3958.4,3958.3,0.002]
[1761300794528,1.33399847,3958.4,3958.3,3.178]
[1761300795703,0.88407252,3958.4,3958.3,7.76641706]
[1761300795905,0.001,3958.8,3958.7,4.58816179]
[1761300796129,0.001,3958.8,3958.7,8.5523845]
[1761300796328,0.001,3958.8,3958.7,4.58816179]
[1761300796540,0.001,3958.8,3958.7,9.6824226]
[1761300796845,0.001,3958.8,3958.7,11.69150356]
[1761300797058,0.001,3958.8,3958.7,6.62250356]
[1761300797257,0.001,3958.8,3958.7,11.69250356]
[1761300798413,0.001,3958.8,3958.7,12.00256153]
[1761300798614,0.001,3958.8,3958.7,12.25516153]
[1761300799463,0.001,3958.8,3958.7,12.55276752]
[1761300799914,0.001,3958.8,3958.7,12.75276752]
[1761300802323,0.001,3958.8,3958.7,12.50016752]
[1761300803267,0.001,3958.8,3958.7,12.20256153]
[1761300803448,0.001,3958.8,3958.7,12.50016752]
[1761300803759,0.001,3958.8,3958.7,12.20256153]
[1761300804066,0.001,3958.8,3958.7,14.71311967]
[1761300804465,0.001,3959.2,3959.1,4.63790657]
[1761300804759,0.001,3959.2,3959.1,9.09750628]
[1761300805056,0.001,3959.2,3959.1,9.54560628]
[1761300805262,0.001,3959.2,3959.1,9.74560628]
[1761300805856,0.2,3961.0,3960.9,2.52467873]
[1761300806056,0.2136,3961.1,3960.9,2.52467873]
[1761300806057,0.2136,3961.1,3961.0,3.03149499]
[1761300806259,0.099,3961.6,3961.5,3.03117635]
[1761300806447,0.2266,3962.0,3961.9,2.52404149]
[1761300806653,0.2266,3962.0,3961.9,5.70204149]
[1761300807156,1.0842562,3962.0,3961.9,5.70204149]
[1761300809348,1.0852562,3962.0,3961.9,5.70204149]
[1761300813969,0.8586562,3962.0,3961.9,6.20892149]
[1761300814147,0.1012,3962.0,3961.9,6.20792149]
[1761300814501,0.2014,3962.0,3961.9,6.20792149]
[1761300816147,0.2006,3962.0,3961.9,6.20792149]
[1761300816547,0.2006,3962.0,3961.9,6.62144052]
[1761300816548,0.1004,3962.0,3961.9,6.62144052]
[1761300816973,0.1004,3962.0,3961.9,8.17664052]
[1761300817178,0.001,3962.0,3961.9,8.17664052]
[1761300817677,0.001,3962.0,3961.9,8.64044052]
[1761300817884,0.001,3962.0,3961.9,8.17664052]
[1761300818862,0.001,3962.0,3961.9,8.64044052]
[1761300820094,0.001,3962.0,3961.9,8.17664052]
[1761300822295,0.001,3962.0,3961.9,8.64044052]
[1761300826188,0.001,3962.0,3961.9,8.98056323]
[1761300827928,0.001,3962.0,3961.9,8.98256323]
[1761300828624,0.001,3962.0,3961.9,5.34176323]
[1761300828826,0.001,3962.0,3961.9,10.40876323]
[1761300830294,0.001,3962.0,3961.9,10.87256323]
[1761300830490,0.001,3962.0,3961.9,10.87156323]
[1761300830691,0.001,3962.0,3961.9,10.06764052]
[1761300831205,0.001,3962.0,3961.9,5.00164052]
[1761300831432,0.001,3962.0,3961.9,10.06764052]
[1761300831634,0.001,3962.0,3961.9,10.53144052]
[1761300831998,0.001,3962.0,3961.9,10.06764052]
[1761300836342,0.001,3962.0,3961.9,5.00164052]
[1761300836546,0.001,3962.0,3961.9,10.06664052]
[1761300836844,0.001,3962.0,3961.9,7.25524149]
[1761300837068,0.001,3962.0,3961.9,8.22592149]
[1761300837742,0.001,3962.0,3961.9,7.76212149]
[1761300837929,0.1,3962.0,3961.9,7.76212149]
[1761300838133,0.001,3962.0,3961.9,7.76212149]
[1761300838336,0.001,3962.0,3961.9,8.99248589]
[1761300838543,0.001,3962.0,3961.9,5.81848589]
[1761300838842,0.001,3962.0,3961.9,8.99248589]
[1761300840222,0.0002,3962.0,3961.9,8.99248589]
[1761300840962,0.0002,3962.0,3961.9,5.81848589]
[1761300841268,0.0002,3962.0,3961.9,8.99248589]
[1761300842357,0.0002,3962.0,3961.9,9.44528589]
[1761300843146,0.0002,3962.0,3961.9,8.99248589]
[1761300843454,0.0002,3962.0,3961.9,9.7854086]
[1761300843643,0.0002,3962.0,3961.9,11.59047909]
[1761300845433,0.0002,3962.0,3961.9,10.08565657]
[1761300845632,0.3,3962.9,3962.8,3.03034825]
[1761300845833,0.3,3962.9,3962.8,8.21405662]
[1761300846065,0.3,3962.9,3962.8,8.98174465]
[1761300848694,2.52221097,3964.8,3962.8,8.98174465]
[1761300848695,2.62267376,3965.0,3963.6,0.50688]
[1761300848902,2.92267376,3965.0,3964.1,2.5226407]
[1761300849052,2.92267376,3965.0,3964.1,5.6966407]
[1761300849454,0.3115,3964.2,3964.1,5.6966407]
[1761300849879,0.3115,3964.2,3964.1,3.174]
[1761300850264,0.3115,3964.2,3964.1,3.173]
[1761300850480,0.3115,3964.2,3964.1,5.6956407]
[1761300851296,0.3115,3964.2,3964.1,3.173]
[1761300851858,0.3115,3964.2,3964.1,5.6956407]
[1761300852253,0.2125,3964.2,3964.1,5.6956407]
[1761300852591,0.3115,3964.2,3964.1,2.5226407]
[1761300852768,0.3115,3964.2,3964.1,5.6956407]
[1761300853278,0.3115,3964.2,3964.1,2.5226407]
[1761300853599,0.3115,3964.2,3964.1,5.6956407]
[1761300853758,0.3115,3964.2,3964.1,3.173]
[1761300853955,0.3115,3964.2,3964.1,5.6956407]
[1761300854700,0.3115,3964.2,3964.1,2.5226407]
[1761300854999,0.3115,3964.2,3964.1,5.6956407]
[1761300856189,0.3115,3964.2,3963.7,0.1264]
[1761300856398,0.099,3964.1,3964.0,2.52270058]
[1761300856584,0.099,3964.1,3964.0,5.69570058]
[1761300856771,0.2254,3964.1,3964.0,5.69570058]
[1761300860396,0.3389,3964.2,3964.1,2.5226407]
[1761300861175,0.4379,3964.2,3964.1,2.5226407]
[1761300864184,0.4371,3964.2,3964.1,2.5226407]
[1761300864380,0.3381,3964.2,3964.1,2.5226407]
[1761300864693,0.3107,3964.2,3964.1,3.0295207]
[1761300865614,0.3107,3964.2,3963.8,0.1264]
[1761300865815,0.3107,3964.2,3964.1,2.5226407]
[1761300866021,0.4381,3964.2,3964.1,2.5226407]
[1761300868692,0.3391,3964.2,3964.1,2.5226407]
[1761300874143,0.3391,3964.2,3963.9,3.67888]
[1761300874344,0.4381,3964.2,3963.9,3.67888]
[1761300874506,0.3391,3964.2,3963.6,2.64935131]
[1761300874712,0.099,3964.1,3963.8,0.50688]
[1761300875126,0.099,3964.1,3963.9,2.52275865]
[1761300875319,0.3391,3964.2,3964.0,3.172]
[1761300875745,0.4381,3964.2,3964.0,3.172]
[1761300876536,0.3391,3964.2,3963.8,3.02971128]
[1761300876739,0.1264,3964.0,3963.9,3.172]
[1761300876939,0.1264,3964.0,3963.9,5.69476798]
[1761300880254,0.2254,3964.0,3963.9,3.172]
[1761300880555,0.2254,3964.0,3963.4,2.52308623]
[1761300880854,0.2254,3964.0,3962.9,2.507846]
[1761300880855,0.1264,3963.7,3963.5,3.172]
[1761300881028,0.1264,3963.7,3963.6,3.172]
[1761300881427,0.2254,3963.7,3963.6,3.172]
[1761300882923,0.1264,3963.7,3963.6,3.172]
[1761300883360,0.1264,3963.7,3963.6,5.69495892]
[1761300883655,0.1264,3963.7,3963.6,6.15275892]
[1761300883825,0.1264,3963.7,3963.6,5.69495892]
[1761300885243,0.1264,3963.7,3963.6,5.69695892]
[1761300885444,0.1264,3963.9,3963.8,2.52282427]
[1761300885647,0.1264,3963.9,3963.8,5.69482427]
[1761300886163,0.1264,3963.9,3963.8,3.172]
[1761300888266,0.1256,3963.9,3963.8,3.172]
[1761300889563,0.1256,3963.9,3963.8,5.69483162]
[1761300890376,0.1256,3963.9,3963.8,3.172]
[1761300890764,0.2127,3964.2,3963.9,0.50688]
[1761300891070,0.3117,3964.2,3964.0,3.172]
[1761300891273,0.099,3964.1,3964.0,3.67888]
[1761300891641,0.099,3964.1,3963.7,0.1264]
[1761300891846,0.099,3964.1,3963.8,3.172]
[1761300891847,0.1264,3964.0,3963.8,3.172]
[1761300892574,0.1264,3964.0,3963.6,3.03181563]
[1761300892760,0.099,3963.9,3963.7,3.172]
[1761300893753,0.099,3963.9,3963.6,3.03183188]
[1761300893985,0.099,3963.9,3963.7,3.172]
[1761300894185,0.1264,3964.0,3963.6,0.002]
[1761300894391,0.1264,3964.0,3963.7,0.50688]
[1761300894392,0.099,3963.8,3963.7,0.50688]
[1761300894693,0.2254,3963.8,3963.7,3.172]
[1761300895076,0.2254,3963.8,3963.6,0.002]
[1761300895280,0.2254,3963.8,3963.7,3.172]
[1761300899489,0.1264,3963.8,3963.7,3.172]
[1761300899652,0.1264,3963.8,3963.7,6.20177527]
[1761300899854,0.1264,3963.9,3963.8,2.52279035]
[1761300900058,0.1264,3963.9,3963.8,2.96909035]
[1761300900285,0.001,3964.2,3963.8,2.96909035]
[1761300900489,0.1264,3964.1,3963.8,2.52279035]
[1761300900995,0.1264,3964.1,3963.8,2.96909035]
[1761300901392,0.1264,3964.1,3963.9,0.4463]
[1761300901700,0.001,3964.2,3963.9,0.4463]
[1761300901701,0.001,3964.2,3964.0,6.20158433]
[1761300902006,0.001,3964.2,3964.1,0.50688]
[1761300906086,0.001,3964.2,3964.1,3.0295207]
[1761300906294,0.001,3964.2,3964.1,6.19573178]
[1761300906496,0.001,3964.2,3964.1,3.79949108]
[1761300906703,0.001,3964.2,3964.1,6.52519108]
[1761300907078,0.001,3964.2,3964.1,6.32213178]
[1761300907279,0.001,3964.2,3964.1,9.36773178]
[1761300907675,0.001,3964.2,3964.1,6.19573178]
[1761300907909,0.001,3964.2,3964.1,9.36773178]
[1761300908719,0.001,3964.2,3964.1,6.19573178]
[1761300908921,0.001,3964.2,3964.1,9.36773178]
[1761300909884,0.001,3964.2,3964.1,2.06208]
[1761300910086,0.001,3964.2,3964.1,5.23408]
[1761300910308,0.001,3964.2,3964.1,2.06208]
[1761300910623,0.1274,3964.2,3964.1,4.7272]
[1761300911585,0.1274,3964.2,3964.1,3.172]
[1761300911586,2.65002493,3964.2,3964.1,3.172]
[1761300911791,2.65002493,3964.2,3963.8,0.002]
[1761300911792,2.75012493,3964.2,3963.8,0.002]
[1761300912091,2.8312478,3964.1,3963.9,3.172]
[1761300912291,2.52271703,3964.0,3963.8,0.002]
[1761300912492,0.2117,3963.9,3963.8,0.002]
[1761300912820,0.4371,3963.9,3963.8,3.174]
[1761300913012,0.4371,3963.9,3963.8,0.002]
[1761300913420,0.4371,3963.9,3963.8,3.174]
[1761300913804,0.3381,3963.9,3963.8,0.002]
[1761300914125,0.3381,3963.9,3963.8,3.174]
[1761300914337,0.3381,3963.9,3963.8,0.002]
[1761300914697,0.2117,3963.9,3963.8,0.002]
[1761300914897,0.2117,3963.9,3963.8,3.174]
[1761300915434,3.36916783,3963.9,3963.8,0.002]
[1761300915726,2.83346798,3963.9,3963.8,3.174]
[1761300917195,2.83346798,3963.9,3963.8,0.002]
[1761300917397,2.83346798,3963.9,3963.8,3.174]
[1761300917827,2.83346798,3963.9,3963.8,0.002]
[1761300918032,3.36917992,3963.9,3963.8,0.002]
[1761300918210,3.36917992,3963.9,3963.8,3.174]
[1761300919507,3.36917992,3963.9,3963.8,0.002]
[1761300920132,3.47015292,3963.9,3963.8,0.002]
[1761300922310,3.36917992,3963.9,3963.8,0.002]
[1761300922510,2.73446798,3963.9,3963.8,0.002]
[1761300922715,2.83346798,3963.9,3963.8,0.002]
[1761300924608,2.95986798,3963.9,3963.8,0.002]
[1761300925749,2.86086798,3963.9,3963.8,0.002]
[1761300926129,2.64916798,3963.9,3963.8,0.002]
[1761300926327,2.86086798,3963.9,3963.8,0.002]
[1761300926920,2.95986798,3963.9,3963.8,0.002]
[1761300927120,3.50821992,3963.9,3963.8,0.002]
[1761300927619,3.50821992,3963.9,3963.8,3.174]
[1761300929149,3.40921992,3963.9,3963.8,0.002]
[1761300929466,3.40921992,3963.9,3963.8,3.174]
[1761300929467,3.50821992,3963.9,3963.8,3.174]
[1761300932467,3.40921992,3963.9,3963.8,3.174]
[1761300934185,2.86086798,3963.9,3963.8,3.174]
[1761300936180,2.95906798,3963.9,3963.8,3.174]
[1761300936682,2.95906798,3963.9,3963.8,0.002]
[1761300937170,2.95906798,3963.9,3963.8,3.175]
[1761300937874,5.05662942,3963.9,3963.8,0.002]
[1761300938377,6.57202192,3963.9,3963.8,0.002]
[1761300941199,5.81399384,3963.9,3963.8,0.002]
[1761300941570,5.81499384,3963.9,3963.8,0.002]
[1761300944567,5.81499384,3963.9,3963.4,1e-08]
[1761300944568,5.17702258,3963.5,3963.4,1e-08]
[1761300944767,11.36725744,3963.5,3963.4,1e-08]
[1761300945300,11.46826741,3963.5,3963.4,1e-08]
[1761300947273,12.37195801,3963.5,3963.4,1e-08]
[1761300948178,5.54226741,3963.5,3963.4,1e-08]
[1761300948391,3.98706741,3963.5,3963.4,1e-08]
[1761300948780,3.44470597,3963.5,3963.4,1e-08]
[1761300949582,3.54370597,3963.5,3963.4,1e-08]
[1761300952177,12.65757046,3963.5,3963.4,1e-08]
[1761300952377,5.6410293,3963.5,3963.4,1e-08]
[1761300952578,8.8200293,3963.5,3963.4,1e-08]
[1761300954320,5.6410293,3963.5,3963.4,1e-08]
[1761300954685,5.7674293,3963.5,3963.4,1e-08]
[1761300956225,2.52397778,3962.0,3961.5,0.4367]
[1761300956423,2.52397778,3962.0,3961.7,0.4347]
[1761300956722,2.52397778,3962.0,3961.5,0.002]
[1761300956921,2.95867778,3962.0,3961.5,0.002]
[1761300957497,2.95867778,3962.0,3961.6,0.4347]
[1761300958309,2.95867778,3962.0,3961.5,0.002]
[1761300958516,4.51387778,3962.0,3961.5,0.002]
[1761300960230,4.51307778,3962.0,3961.5,0.002]
[1761300961733,2.95787778,3962.0,3961.9,0.4621]
[1761300962126,2.52317778,3962.0,3961.9,0.4621]
[1761300966110,2.64957778,3962.0,3961.9,0.4621]
[1761300966947,0.1264,3962.0,3961.9,0.4621]
[1761300967142,2.65037778,3962.0,3961.9,0.4621]
[1761300967735,0.1264,3962.0,3961.9,0.4621]
[1761300977662,0.1274,3962.0,3961.9,0.4621]
[1761300981252,0.1274,3962.0,3961.9,1.07922849]
[1761300983300,0.1274,3962.0,3961.9,4.26022849]
[1761300983705,0.1274,3962.0,3961.9,6.78426998]
[1761300983916,0.001,3962.0,3961.9,6.78426998]
[1761300984276,0.0002,3962.0,3961.9,6.78426998]
[1761300985015,0.0002,3962.0,3961.9,8.84634998]
[1761300985190,0.0002,3962.0,3961.9,8.97274998]
[1761300987429,0.0002,3962.0,3961.9,9.22534998]
[1761300989314,0.0002,3962.0,3961.9,9.54381275]
[1761300991693,0.0002,3962.0,3961.9,6.36281275]
[1761300991892,0.0002,3962.0,3961.9,11.11734998]
[1761300992720,0.0002,3962.0,3961.9,11.43581275]
[1761300995131,0.0002,3962.0,3961.9,6.36281275]
[1761300995334,0.0002,3962.0,3961.9,11.11534998]
[1761300995506,0.0002,3962.0,3961.9,11.11434998]
[1761300995934,0.0002,3962.0,3961.9,15.24201273]
[1761300998337,0.0002,3962.0,3961.9,15.54221808]
[1761300999528,0.0002,3962.0,3961.9,17.05621808]
[1761300999829,0.0002,3962.0,3961.9,15.54221808]
[1761301000034,0.0002,3962.0,3961.9,10.47221808]
[1761301000234,0.0002,3962.0,3961.9,15.54221808]
[1761301002924,0.0002,3962.0,3961.9,15.54121808]
[1761301006310,0.0002,3962.0,3961.9,17.03609957]
[1761301008148,0.0004,3962.4,3962.3,3.33326668]
[1761301008343,0.0004,3962.4,3962.3,8.80669961]
[1761301008647,0.0004,3962.4,3962.3,9.39059961]
[1761301011364,0.0004,3962.4,3962.3,6.16359961]
[1761301011517,0.0004,3962.4,3962.3,11.23059961]
[1761301011712,0.0004,3962.4,3962.3,6.16359961]
[1761301012066,0.0004,3962.4,3962.3,11.23059961]
[1761301013151,0.0004,3962.4,3962.3,6.16359961]
[1761301013349,0.0004,3962.4,3962.3,10.77309961]
[1761301013553,0.0004,3962.4,3962.3,5.70609961]
[1761301013774,0.0004,3962.4,3962.3,10.77309961]
[1761301014687,0.0004,3962.4,3962.3,5.70609961]
[1761301014894,0.0004,3962.4,3962.3,10.77309961]
[1761301015259,0.0004,3962.4,3962.3,5.70609961]
[1761301015668,0.0004,3962.4,3962.3,10.77309961]
[1761301016544,0.0004,3962.4,3962.3,5.70609961]
[1761301016744,0.0004,3962.4,3962.3,10.77309961]
[1761301017585,0.0004,3962.4,3962.3,4.79378668]
[1761301017890,0.0004,3962.4,3962.3,7.38138668]
[1761301018071,0.0004,3962.4,3962.3,6.33306668]
[1761301018271,0.0004,3962.4,3962.3,5.82618668]
[1761301018456,0.0004,3962.4,3962.3,7.38138668]
[1761301018664,0.0004,3962.4,3962.3,7.88826668]
[1761301018984,0.0004,3962.4,3962.3,8.14056668]
[1761301020474,0.0004,3962.4,3962.3,4.71226668]
[1761301020675,0.0994,3962.4,3962.3,7.88826668]
[1761301021494,0.0994,3962.4,3962.3,4.71226668]
[1761301021690,0.0994,3962.4,3962.3,7.88726668]
[1761301021896,0.0994,3962.4,3962.3,4.71226668]
[1761301022055,0.0994,3962.4,3962.3,7.88726668]
[1761301024007,0.0994,3962.4,3961.9,0.002]
[1761301024170,0.0994,3962.4,3962.0,3.175]
[1761301024693,0.0994,3962.4,3962.1,3.179]
[1761301025254,0.26230873,3962.3,3961.9,0.002]
[1761301025448,0.0994,3962.4,3961.9,0.002]
[1761301025660,2.62282877,3962.3,3962.0,3.178]
[1761301026286,0.0004,3962.4,3961.9,0.002]
[1761301026287,0.099,3962.2,3962.1,3.178]
[1761301026689,3.38036499,3962.2,3962.1,3.178]
[1761301026863,3.9708139,3962.2,3962.1,3.178]
[1761301028154,3.9708139,3962.2,3961.9,0.002]
[1761301028155,2.52397778,3962.0,3961.9,0.002]
[1761301028368,2.52397778,3962.0,3961.9,3.183]
[1761301028656,2.62297778,3962.0,3961.9,3.183]
[1761301028881,3.27245208,3962.0,3961.9,3.183]
[1761301030396,3.27245208,3962.0,3961.9,0.002]
[1761301030561,3.27245208,3962.0,3961.9,3.183]
[1761301032155,3.27165208,3962.0,3961.9,3.183]
[1761301032387,3.27165208,3962.0,3961.9,0.002]
[1761301032687,3.27165208,3962.0,3961.9,3.183]
[1761301033089,3.27165208,3962.0,3961.9,0.002]
[1761301033287,3.27165208,3962.0,3961.9,2.171]
[1761301033975,3.39805208,3962.0,3961.9,2.171]
[1761301035574,4.15570532,3962.0,3961.9,2.171]
[1761301036473,4.15570532,3962.0,3961.9,0.002]
[1761301036873,5.71090532,3962.0,3961.9,0.002]
[1761301037893,5.71090532,3962.0,3961.7,1e-08]
[1761301037894,4.0793052,3961.8,3961.7,1e-08]
[1761301038063,5.04568625,3961.8,3961.7,1e-08]
[1761301038263,5.14468625,3961.8,3961.7,1e-08]
[1761301041504,5.24573271,3961.8,3961.7,1e-08]
[1761301045401,2.52448752,3961.2,3960.1,0.013]
[1761301045587,4.33213627,3961.2,3960.1,0.013]
[1761301045770,4.43113627,3961.2,3960.1,0.013]
[1761301046170,4.88713627,3961.2,3960.1,0.013]
[1761301047284,7.54113627,3961.2,3960.1,0.013]
[1761301047491,4.88713627,3961.2,3960.1,0.013]
[1761301047974,5.01353627,3961.2,3960.1,0.013]
[1761301048713,5.01353627,3961.2,3959.4,0.4712]
[1761301049114,2.52461499,3961.0,3960.9,1e-08]
[1761301049426,5.29735012,3961.0,3960.9,1e-08]
[1761301049592,5.52275012,3961.0,3960.9,1e-08]
[1761301049909,6.28070772,3961.0,3960.9,1e-08]
[1761301052518,6.66118772,3961.0,3960.9,1e-08]
[1761301052681,7.20238765,3961.0,3960.9,1e-08]
[1761301055042,4.50010772,3961.0,3960.9,1e-08]
[1761301055215,3.28257259,3961.0,3960.9,1e-08]
[1761301056190,3.28177259,3961.0,3960.9,1e-08]
[1761301056891,3.38077259,3961.0,3960.9,1e-08]
[1761301058420,3.28177259,3961.0,3960.9,1e-08]
[1761301059513,3.28177259,3961.0,3960.9,0.46440001]
[1761301060709,3.28177259,3961.0,3960.9,1e-08]
[1761301061232,3.8623986,3961.0,3960.9,1e-08]
[1761301061934,3.28177259,3961.0,3960.9,1e-08]
[1761301062132,3.28177259,3961.0,3960.9,0.46440001]
[1761301062636,3.40817259,3961.0,3960.9,1e-08]
[1761301064206,3.28177259,3961.0,3960.9,1e-08]
[1761301064439,3.92431316,3961.0,3960.9,1e-08]
[1761301064636,4.56919323,3961.0,3960.9,1e-08]
[1761301066320,4.57019323,3961.0,3960.9,1e-08]
[1761301067313,4.47119323,3961.0,3960.9,1e-08]
[1761301069040,4.57019323,3961.0,3960.9,1e-08]
[1761301073253,6.12539323,3961.0,3960.9,1e-08]
[1761301074325,6.25179323,3961.0,3960.9,1e-08]
[1761301074930,6.15279323,3961.0,3960.9,1e-08]
[1761301076263,6.25179323,3961.0,3960.9,1e-08]
[1761301078449,6.15279323,3961.0,3960.9,1e-08]
[1761301078652,5.50791316,3961.0,3960.9,1e-08]
[1761301078854,3.95271316,3961.0,3960.9,0.46440001]
[1761301079069,3.40917259,3961.0,3960.9,0.46440001]
[1761301079532,0.8853576,3961.0,3960.9,0.46440001]
[1761301080141,0.8845576,3961.0,3960.9,0.46440001]
[1761301080341,0.8845576,3961.0,3960.9,1.08162576]
[1761301080748,0.8845576,3961.0,3960.9,0.46440001]
[1761301080949,3.40917259,3961.0,3960.9,3.64840001]
[1761301081330,3.40917259,3961.0,3960.9,0.46440001]
[1761301081542,3.40917259,3961.0,3960.9,1e-08]
[1761301081743,3.40917259,3961.0,3960.9,0.47350001]
[1761301082469,0.8845576,3961.0,3960.9,0.47350001]
[1761301083363,0.8845576,3961.0,3960.9,0.83935001]
[1761301083364,0.1274,3961.0,3960.9,0.83935001]
[1761301084039,0.1274,3961.0,3960.9,4.02535001]
[1761301084367,2.65201499,3961.0,3960.9,1e-08]
[1761301084555,2.65201499,3961.0,3960.9,3.65850001]
[1761301084759,2.65201499,3961.0,3960.9,1e-08]
[1761301085144,3.19609986,3961.0,3960.9,1e-08]
[1761301087372,3.19609986,3961.0,3960.9,0.47350001]
[1761301087373,2.65201499,3961.0,3960.9,0.47350001]
[1761301087544,3.16967013,3961.0,3960.9,1e-08]
[1761301088554,2.65201499,3961.0,3960.9,1e-08]
[1761301088962,2.65201499,3961.0,3960.9,0.47350001]
[1761301090486,2.65201499,3961.0,3960.9,1e-08]
[1761301096490,2.65201499,3961.0,3960.9,3.18600001]
[1761301096804,2.65201499,3961.0,3960.9,3.65950001]
[1761301097759,2.65201499,3961.0,3960.9,3.18600001]
[1761301097995,2.65201499,3961.0,3960.9,3.65950001]
[1761301098295,3.4098022,3961.0,3960.9,3.65950001]
[1761301098493,2.65201499,3961.0,3960.9,3.65950001]
[1761301104209,2.65121499,3961.0,3960.9,3.65950001]
[1761301104800,0.0002,3961.0,3960.9,3.65950001]
[1761301104999,0.1266,3961.0,3960.9,4.02545001]
[1761301110376,0.1266,3961.0,3960.9,3.65950001]
[1761301111824,0.1266,3961.0,3960.9,1e-08]
[1761301112010,2.65121499,3961.0,3960.9,3.18300001]
[1761301112187,2.65121499,3961.0,3960.9,1e-08]
[1761301112522,2.65121499,3961.0,3960.9,3.18300001]
[1761301112881,2.65121499,3961.0,3960.9,1e-08]
[1761301112882,3.16878624,3961.0,3960.9,1e-08]
[1761301113081,6.04726012,3961.0,3960.9,1e-08]
[1761301113278,5.36729074,3961.0,3960.9,1e-08]
[1761301115803,5.46834715,3961.0,3960.9,1e-08]
[1761301128162,5.46754715,3961.0,3960.9,1e-08]
[1761301132253,5.36854715,3961.0,3960.9,1e-08]
[1761301132672,5.46754715,3961.0,3960.9,1e-08]
[1761301134494,8.64954715,3961.0,3960.9,1e-08]
[1761301134882,9.83639653,3961.0,3960.9,1e-08]
[1761301135188,9.15642715,3961.0,3960.9,1e-08]
[1761301136200,2.62602499,3960.2,3960.1,1e-08]
[1761301136382,4.72552949,3960.2,3960.1,1e-08]
[1761301136691,4.82452949,3960.2,3960.1,1e-08]
[1761301136893,5.25862949,3960.2,3960.1,1e-08]
[1761301137058,5.15962949,3960.2,3960.1,1e-08]
[1761301137371,6.32407356,3960.2,3960.1,1e-08]
[1761301142881,6.42307356,3960.2,3960.1,1e-08]
[1761301143482,7.10183696,3960.2,3960.1,1e-08]
[1761301144133,7.32809143,3960.2,3960.1,1e-08]
[1761301145118,7.83497143,3960.2,3960.1,1e-08]
[1761301146034,6.92995356,3960.2,3960.1,1e-08]
[1761301146238,7.96168287,3960.2,3960.1,1e-08]
[1761301146638,7.76178287,3960.2,3960.1,1e-08]
[1761301147220,7.73438287,3960.2,3960.1,1e-08]
[1761301147421,7.86078287,3960.2,3960.1,1e-08]
[1761301147905,6.34957356,3960.2,3960.1,1e-08]
[1761301151640,9.60945356,3960.2,3960.1,1e-08]
[1761301152041,9.06514906,3960.2,3960.1,1e-08]
[1761301152338,9.06434906,3960.2,3960.1,1e-08]
[1761301156578,9.06534906,3960.2,3960.1,1e-08]
[1761301156757,6.31234906,3960.2,3960.1,1e-08]
[1761301157728,9.49534906,3960.2,3960.1,1e-08]
[1761301157951,8.98846906,3960.2,3960.1,1e-08]
[1761301159260,8.98846906,3960.2,3960.1,0.66690001]
[1761301160765,8.98846906,3960.2,3960.1,0.22320001]
[1761301160963,8.98846906,3960.2,3960.1,1e-08]
[1761301160964,3.08582499,3960.2,3960.1,1e-08]
[1761301161174,4.51462499,3960.2,3960.1,1e-08]
[1761301161572,7.69762499,3960.2,3960.1,1e-08]
[1761301161777,8.72979227,3960.2,3960.1,1e-08]
[1761301168976,8.72979227,3960.2,3959.7,0.002]
[1761301168977,3.16088,3959.7,3958.8,0.2267]
[1761301169179,2.52595417,3958.9,3958.8,0.2267]
[1761301169788,2.75265417,3958.9,3958.8,0.2267]
[1761301169974,2.52595417,3958.9,3958.8,0.2267]
[1761301170962,2.65235417,3958.9,3958.8,0.6735]
[1761301175585,2.65235417,3958.9,3958.8,0.6755]
[1761301176177,2.65155417,3958.9,3958.8,0.6755]
[1761301177203,3.58616984,3958.9,3958.8,0.002]
[1761301177390,4.3444838,3958.9,3958.8,0.002]
[1761301177902,4.3444838,3958.9,3958.8,0.4488]
[1761301178101,4.3444838,3958.9,3958.8,0.002]